bitfinex/quotes_SOLUSD_20250718
["timestamp","ask_amount","ask_price","bid_price","bid_amount"]
[1752804754079,5.57165143,179.48,179.46,0.66000001]
[1752804754475,5.57165143,179.48,179.46,89.46000001]
[1752804754676,5.60047279,179.52,179.47,24.05347404]
[1752804754876,5.60047279,179.52,179.5,16.78468397]
[1752804755087,0.03,179.52,179.51,0.66]
[1752804755300,30.03,179.52,179.51,0.66]
[1752804755608,0.03,179.52,179.51,0.66]
[1752804755787,5.60040998,179.52,179.5,16.78468397]
[1752804756094,5.60040998,179.52,179.5,0.66]
[1752804756682,0.03,179.52,179.5,0.66]
[1752804757300,0.03,179.52,179.5,10.56092285]
[1752804757507,0.03,179.52,179.51,28.00560682]
[1752804758797,0.03,179.52,179.51,59.44560682]
[1752804759012,0.03,179.52,179.51,75.57724996]
[1752804759181,0.03,179.52,179.51,65.01632711]
[1752804761088,0.03,179.56,179.52,16.78468397]
[1752804761286,0.03,179.56,179.52,17.44468397]
[1752804761607,0.03,179.56,179.55,27.34560682]
[1752804761799,0.03,179.56,179.55,58.78560682]
[1752804761978,0.03,179.56,179.55,59.44560682]
[1752804762385,0.03,179.56,179.55,48.88468397]
[1752804762703,0.03,179.56,179.55,59.44560682]
[1752804763697,0.03,179.56,179.55,28.00560682]
[1752804763896,0.03,179.56,179.55,59.42560682]
[1752804765305,0.03,179.56,179.55,48.20468397]
[1752804766188,0.73,179.56,179.55,16.78468397]
[1752804766688,0.03,179.56,179.55,17.44468397]
[1752804766893,0.03,179.56,179.55,28.00560682]
[1752804767204,0.03,179.56,179.55,59.40560682]
[1752804767500,0.03,179.56,179.55,147.54560682]
[1752804767689,0.03,179.56,179.55,136.98468397]
[1752804767891,0.03,179.56,179.55,137.64468397]
[1752804768397,0.03,179.56,179.55,136.98468397]
[1752804768791,0.03,179.56,179.55,147.54560682]
[1752804769118,0.03,179.56,179.55,148.20560682]
[1752804771405,0.03,179.56,179.55,153.77508607]
[1752804774500,0.03,179.56,179.55,183.56688607]
[1752804774708,0.03,179.56,179.55,196.00578607]
[1752804775209,0.03,179.6,179.59,105.55468397]
[1752804775407,0.03,179.6,179.59,147.49560682]
[1752804775612,0.03,179.6,179.59,148.18560682]
[1752804777101,0.03,179.6,179.59,144.21611817]
[1752804777703,0.03,179.6,179.59,105.55468397]
[1752804777895,7.3114342,179.6,179.56,16.78468397]
[1752804778209,0.69,179.59,179.56,48.14468397]
[1752804778415,0.69,179.58,179.56,48.14468397]
[1752804779116,0.03,179.6,179.56,48.14468397]
[1752804779322,0.03,179.6,179.57,23.37611817]
[1752804779495,0.72,179.6,179.57,23.37611817]
[1752804780008,5.56823876,179.59,179.57,23.37611817]
[1752804780507,5.56823876,179.59,179.57,16.78468397]
[1752804781418,6.25823876,179.59,179.57,16.78468397]
[1752804782087,5.59796828,179.6,179.57,16.78468397]
[1752804782419,5.59796828,179.6,179.57,48.14468397]
[1752804782721,0.69,179.59,179.57,48.14468397]
[1752804784014,5.59796828,179.6,179.57,48.14468397]
[1752804784218,0.69,179.59,179.57,48.14468397]
[1752804784416,6.5914342,179.58,179.51,88.77]
[1752804784706,7.2814342,179.57,179.52,31.34]
[1752804784913,6.5914342,179.57,179.52,31.34]
[1752804785093,0.69,179.56,179.52,31.34]
[1752804785413,7.2814342,179.58,179.54,16.78468397]
[1752804785785,6.25885894,179.57,179.54,16.78468397]
[1752804786005,5.56823876,179.59,179.55,23.37611817]
[1752804786206,6.25823876,179.59,179.55,16.78468397]
[1752804786427,0.69,179.58,179.54,120.11]
[1752804786604,7.2814342,179.58,179.54,120.11]
[1752804786913,7.2814342,179.57,179.54,120.11]
[1752804787115,6.5914342,179.57,179.54,88.77]
[1752804787332,0.69,179.56,179.54,88.77]
[1752804788133,19.48883567,179.59,179.55,16.78468397]
[1752804788134,26.69,179.59,179.55,16.78468397]
[1752804788296,0.69,179.59,179.55,16.78468397]
[1752804788623,0.69,179.59,179.55,48.79468397]
[1752804788624,6.25823876,179.59,179.55,48.79468397]
[1752804789419,6.25823876,179.59,179.54,95.3614342]
[1752804789420,6.5914342,179.57,179.54,88.77]
[1752804789596,0.69,179.56,179.54,88.77]
[1752804789924,0.69,179.55,179.54,105.55468397]
[1752804790111,6.25947925,179.55,179.54,105.55468397]
[1752804790313,5.56947925,179.55,179.54,105.55468397]
[1752804791298,5.56916907,179.56,179.54,105.55468397]
[1752804791595,6.25916907,179.56,179.54,105.55468397]
[1752804791824,0.69,179.55,179.54,88.77]
[1752804792018,7.2814342,179.55,179.54,88.77]
[1752804792198,7.2814342,179.55,179.52,88.77]
[1752804792396,6.5914342,179.53,179.52,88.77]
[1752804792618,7.2814342,179.53,179.52,88.77]
[1752804793293,12.8515339,179.53,179.52,88.77]
[1752804793490,12.8515339,179.53,179.52,88.83]
[1752804795620,12.8515339,179.53,179.52,0.06]
[1752804795819,12.8515339,179.53,179.48,3.0]
[1752804795820,26.77678316,179.53,179.48,91.77]
[1752804796025,6.5914342,179.49,179.48,91.77]
[1752804796210,7.2814342,179.49,179.48,91.77]
[1752804796405,19.49534896,179.53,179.48,91.77]
[1752804796406,6.5914342,179.51,179.48,91.77]
[1752804796612,5.57072029,179.51,179.48,91.77]
[1752804797109,5.57072029,179.51,179.49,16.78468397]
[1752804797820,12.16215449,179.51,179.49,16.78468397]
[1752804798132,12.85215449,179.51,179.49,16.78468397]
[1752804798928,12.85215449,179.51,179.48,91.77]
[1752804799428,5.57134102,179.49,179.48,91.77]
[1752804800012,12.85277522,179.49,179.48,91.77]
[1752804803111,12.85277522,179.49,179.48,3.0]
[1752804804437,12.85277522,179.49,179.46,1e-08]
[1752804804639,32.5914342,179.47,179.46,1e-08]
[1752804805020,33.3114342,179.47,179.46,1e-08]
[1752804805207,38.88339608,179.47,179.46,1e-08]
[1752804806617,38.38339608,179.47,179.46,1e-08]
[1752804809615,38.38339608,179.47,179.45,1e-08]
[1752804809818,7.3114342,179.46,179.45,1e-08]
[1752804811133,12.88370657,179.46,179.45,1e-08]
[1752804812546,6.29227237,179.46,179.45,1e-08]
[1752804812749,12.88370657,179.46,179.45,1e-08]
[1752804813255,26.0,179.43,179.42,3.0]
[1752804813415,32.5914342,179.43,179.42,3.0]
[1752804813754,33.3114342,179.43,179.42,3.0]
[1752804814053,33.3114342,179.43,179.42,1e-08]
[1752804815218,38.88463823,179.43,179.42,1e-08]
[1752804816448,32.29320403,179.43,179.42,1e-08]
[1752804816748,38.88463823,179.43,179.42,1e-08]
[1752804819649,32.29320403,179.43,179.42,1e-08]
[1752804819832,38.88463823,179.43,179.42,1e-08]
[1752804820148,59.40908251,179.43,179.35,0.06]
[1752804820352,26.0,179.39,179.35,0.06]
[1752804820522,6.5914342,179.36,179.35,0.06]
[1752804821551,12.16650249,179.37,179.35,0.06]
[1752804822062,5.57481406,179.38,179.36,0.67]
[1752804822522,12.16624826,179.38,179.36,0.67]
[1752804822724,12.16624826,179.38,179.35,0.06]
[1752804822946,12.16624826,179.38,179.35,0.73]
[1752804823254,32.5914342,179.36,179.35,1e-08]
[1752804823566,31.57600089,179.34,179.33,1e-08]
[1752804823729,69.36743509,179.34,179.33,1e-08]
[1752804823929,31.57600089,179.34,179.33,1e-08]
[1752804824747,38.16743509,179.34,179.33,1e-08]
[1752804825451,38.88743509,179.34,179.33,1e-08]
[1752804826456,32.29600089,179.34,179.33,1e-08]
[1752804826662,38.88743509,179.34,179.33,1e-08]
[1752804828124,31.57600089,179.34,179.33,1e-08]
[1752804828331,38.16743509,179.34,179.33,1e-08]
[1752804829836,31.57600089,179.34,179.33,1e-08]
[1752804831130,38.88743509,179.34,179.33,1e-08]
[1752804832348,5.57600089,179.34,179.33,1e-08]
[1752804832531,31.57600089,179.34,179.33,1e-08]
[1752804833929,5.57568999,179.35,179.33,1e-08]
[1752804835635,5.57568999,179.35,179.33,88.77000001]
[1752804837858,19.51273902,179.37,179.33,88.77000001]
[1752804838054,25.39636461,179.43,179.36,6.5914342]
[1752804838055,5.57382531,179.41,179.36,6.5914342]
[1752804838361,5.57382531,179.41,179.38,6.5914342]
[1752804838565,5.57382531,179.41,179.37,0.72]
[1752804838853,5.57382531,179.41,179.37,7.3114342]
[1752804839055,13.93553277,179.4,179.37,6.5914342]
[1752804839245,13.93553277,179.4,179.38,0.72]
[1752804840347,5.57382531,179.41,179.38,0.72]
[1752804841340,5.57382531,179.41,179.38,7.3114342]
[1752804841957,5.57382531,179.41,179.39,0.72]
[1752804842258,5.57382531,179.41,179.38,7.3114342]
[1752804843440,5.57382531,179.41,179.4,6.5914342]
[1752804843642,5.57382531,179.41,179.4,89.49]
[1752804843939,13.9334161,179.43,179.4,96.0814342]
[1752804844345,13.9334161,179.43,179.4,89.49]
[1752804845563,13.9334161,179.43,179.41,0.72]
[1752804845762,13.9334161,179.43,179.4,95.3614342]
[1752804846059,5.57289344,179.44,179.41,7.3114342]
[1752804847057,5.57289344,179.44,179.41,0.72]
[1752804847558,5.57289344,179.44,179.35,5.5755917]
[1752804847559,26.0,179.41,179.33,101.42470001]
[1752804847745,6.5914342,179.38,179.33,12.65470001]
[1752804848053,5.57537912,179.36,179.33,13.37470001]
[1752804848238,5.57499262,179.38,179.35,16.78468397]
[1752804848560,5.57499262,179.38,179.37,6.5914342]
[1752804848858,5.57499262,179.38,179.37,7.3114342]
[1752804849437,5.57499262,179.38,179.37,24.09611817]
[1752804849760,13.93496742,179.41,179.37,24.09611817]
[1752804850259,6.5914342,179.39,179.35,88.77]
[1752804850461,19.50879273,179.41,179.35,88.77]
[1752804850462,0.69,179.38,179.35,88.77]
[1752804850652,0.69,179.37,179.35,88.77]
[1752804850851,19.50879273,179.41,179.35,95.3614342]
[1752804850852,0.69,179.4,179.35,95.3614342]
[1752804851049,0.69,179.4,179.36,7.3114342]
[1752804851249,26.10022693,179.41,179.37,0.72]
[1752804851450,5.57382531,179.41,179.37,0.72]
[1752804851649,31.57382531,179.41,179.37,0.72]
[1752804851959,5.57382531,179.41,179.37,0.72]
[1752804852268,0.69,179.41,179.36,23.37611817]
[1752804852441,7.2814342,179.41,179.36,112.86611817]
[1752804852640,7.2814342,179.41,179.36,24.09611817]
[1752804853186,7.2814342,179.41,179.37,0.72]
[1752804853344,19.50730129,179.42,179.38,0.72]
[1752804853545,5.57351465,179.42,179.38,0.72]
[1752804854046,6.26351465,179.42,179.38,0.72]
[1752804854244,7.2814342,179.41,179.36,23.37611817]
[1752804854463,7.2814342,179.41,179.36,24.09611817]
[1752804854750,0.69,179.41,179.36,24.09611817]
[1752804854947,0.69,179.41,179.37,0.72]
[1752804855678,31.57351465,179.42,179.38,0.72]
[1752804856351,38.16494885,179.42,179.38,0.72]
[1752804856554,38.85494885,179.42,179.38,0.72]
[1752804857062,0.69,179.41,179.36,24.09611817]
[1752804857363,0.69,179.4,179.36,24.09611817]
[1752804858166,38.16494885,179.42,179.36,24.09611817]
[1752804858353,38.85494885,179.42,179.37,7.3114342]
[1752804858552,38.85494885,179.42,179.38,0.72]
[1752804858874,31.57351465,179.42,179.38,7.3114342]
[1752804859173,31.57351465,179.42,179.36,105.55468397]
[1752804859174,5.57328588,179.43,179.4,16.78468397]
[1752804859349,0.03,179.41,179.4,17.50468397]
[1752804860664,0.03,179.41,179.39,6.5914342]
[1752804860970,0.03,179.41,179.38,16.78468397]
[1752804862266,0.03,179.41,179.38,17.50468397]
[1752804862669,5.60382531,179.41,179.38,17.50468397]
[1752804863481,5.60382531,179.41,179.38,24.09611817]
[1752804863781,5.60382531,179.41,179.39,7.3114342]
[1752804865073,0.03,179.41,179.39,7.3114342]
[1752804865904,0.03,179.41,179.39,0.72]
[1752804867364,0.03,179.41,179.4,7.2614342]
[1752804867558,0.03,179.41,179.4,24.04611817]
[1752804867759,0.03,179.41,179.4,112.81611817]
[1752804870553,0.03,179.41,179.4,106.22468397]
[1752804870776,0.03,179.41,179.4,112.81611817]
[1752804873664,0.03,179.41,179.4,106.22468397]
[1752804873864,0.03,179.41,179.4,112.81611817]
[1752804874975,0.03,179.41,179.4,106.22468397]
[1752804875168,0.03,179.41,179.4,17.45468397]
[1752804876577,0.03,179.41,179.4,16.78468397]
[1752804876883,0.03,179.41,179.38,30.98]
[1752804877089,0.72,179.41,179.38,30.98]
[1752804877377,0.72,179.41,179.38,37.5714342]
[1752804877964,0.72,179.41,179.38,7.2614342]
[1752804878471,6.29407027,179.41,179.38,16.78468397]
[1752804879170,6.29407027,179.41,179.38,23.37611817]
[1752804879378,5.60407027,179.41,179.38,24.04611817]
[1752804880262,0.03,179.41,179.38,17.45468397]
[1752804880689,0.72,179.41,179.38,16.78468397]
[1752804881684,0.72,179.41,179.38,23.37611817]
[1752804881888,0.03,179.41,179.38,24.04611817]
[1752804882183,0.03,179.41,179.39,6.5914342]
[1752804883092,0.03,179.41,179.38,24.04611817]
[1752804883477,0.72,179.41,179.38,24.04611817]
[1752804883993,0.03,179.41,179.38,24.04611817]
[1752804884373,0.03,179.41,179.33,127.51010001]
[1752804884579,0.69,179.4,179.36,16.78468397]
[1752804884793,0.69,179.39,179.36,16.78468397]
[1752804885299,6.26462384,179.39,179.36,16.78468397]
[1752804886098,5.57419393,179.4,179.36,24.04611817]
[1752804886302,6.26419393,179.4,179.36,24.04611817]
[1752804886611,6.26419393,179.4,179.37,0.67]
[1752804887103,6.26419393,179.4,179.35,16.78468397]
[1752804887280,6.26419393,179.4,179.36,7.2614342]
[1752804887587,5.57419393,179.4,179.37,6.5914342]
[1752804887901,5.60384273,179.41,179.37,7.2614342]
[1752804888118,0.03,179.41,179.4,6.5914342]
[1752804888280,0.03,179.41,179.4,116.47371817]
[1752804888480,0.72,179.48,179.4,116.47371817]
[1752804888481,0.03,179.48,179.41,16.78468397]
[1752804888804,0.03,179.48,179.46,23.37611817]
[1752804888995,0.03,179.48,179.46,54.25611817]
[1752804889191,0.03,179.48,179.46,54.92611817]
[1752804889397,0.03,179.48,179.46,149.26839054]
[1752804892899,0.03,179.48,179.46,143.69611817]
[1752804893220,0.72,179.47,179.45,88.77]
[1752804893391,7.3114342,179.47,179.43,88.77]
[1752804893588,5.57258289,179.45,179.43,88.77]
[1752804893804,0.69,179.44,179.43,105.55468397]
[1752804894129,0.69,179.44,179.39,37.4314342]
[1752804894423,0.69,179.43,179.4,16.78468397]
[1752804894919,5.57258289,179.45,179.4,16.78468397]
[1752804895121,0.67,179.44,179.4,16.78468397]
[1752804895487,0.67,179.44,179.4,23.37611817]
[1752804895712,5.57320403,179.43,179.4,23.37611817]
[1752804895931,6.24320403,179.43,179.4,16.78468397]
[1752804896793,6.24320403,179.43,179.4,23.37611817]
[1752804896995,5.57320403,179.43,179.4,23.37611817]
[1752804897205,5.57320403,179.43,179.4,24.09611817]
[1752804897508,6.24320403,179.43,179.4,16.78468397]
[1752804898911,7.2614342,179.42,179.38,88.77]
[1752804899117,6.5914342,179.39,179.33,0.72000001]
[1752804899302,0.67,179.39,179.34,6.5914342]
[1752804899505,0.67,179.38,179.35,16.78468397]
[1752804899687,5.57506829,179.37,179.35,16.78468397]
[1752804899883,5.57506829,179.37,179.34,23.37611817]
[1752804900121,5.57506829,179.37,179.34,17.50468397]
[1752804900299,5.57506829,179.37,179.34,16.78468397]
[1752804900792,5.57506829,179.37,179.35,0.72]
[1752804901110,5.57506829,179.37,179.34,23.37611817]
[1752804901309,5.57506829,179.37,179.34,16.78468397]
[1752804901703,5.57475749,179.38,179.34,16.78468397]
[1752804901899,6.24475749,179.38,179.34,24.09611817]
[1752804903219,0.67,179.37,179.34,23.37611817]
[1752804903456,5.57475749,179.38,179.35,6.5914342]
[1752804903604,6.24475749,179.38,179.35,6.5914342]
[1752804903992,5.57475749,179.38,179.36,6.5914342]
[1752804905228,5.57475749,179.38,179.35,6.5914342]
[1752804905432,6.24475749,179.38,179.35,6.5914342]
[1752804905723,5.57475749,179.38,179.34,16.78468397]
[1752804905903,0.67,179.37,179.34,88.77]
[1752804906109,7.2614342,179.37,179.34,88.77]
[1752804906316,0.67,179.36,179.34,88.77]
[1752804906489,6.5914342,179.37,179.34,88.77]
[1752804906693,0.67,179.36,179.34,88.77]
[1752804906893,0.67,179.35,179.34,88.77]
[1752804907114,0.67,179.35,179.33,88.77000001]
[1752804907819,5.57600089,179.34,179.33,88.77000001]
[1752804908824,6.24600089,179.34,179.33,88.77000001]
[1752804910506,6.24600089,179.34,179.33,1e-08]
[1752804910719,12.83743509,179.34,179.33,1e-08]
[1752804911298,16.60963509,179.34,179.33,1e-08]
[1752804911898,26.0,179.31,179.27,0.2]
[1752804912220,12.16930122,179.28,179.27,0.2]
[1752804912603,12.83930122,179.28,179.27,0.2]
[1752804913210,6.24786702,179.28,179.27,0.2]
[1752804913434,6.5914342,179.3,179.27,7.5114342]
[1752804913435,5.57724484,179.3,179.27,7.5114342]
[1752804913614,5.57724484,179.3,179.29,6.5914342]
[1752804914223,5.57662279,179.32,179.29,9.5914342]
[1752804914527,6.24662279,179.32,179.29,9.5914342]
[1752804914919,0.67,179.31,179.29,9.5914342]
[1752804915324,0.67,179.31,179.29,3.0]
[1752804915631,6.24724484,179.3,179.29,3.0]
[1752804916005,5.57724484,179.3,179.29,3.0]
[1752804917130,0.67,179.32,179.29,9.5914342]
[1752804917131,5.57702741,179.31,179.29,9.5914342]
[1752804917320,5.57631182,179.33,179.3,6.5914342]
[1752804917627,5.57631182,179.33,179.31,6.5914342]
[1752804918839,5.57631182,179.33,179.3,6.5914342]
[1752804919144,0.67,179.32,179.29,3.0]
[1752804919309,0.67,179.31,179.29,3.0]
[1752804919515,5.57631182,179.33,179.3,6.5914342]
[1752804919843,5.57631182,179.33,179.3,7.3114342]
[1752804920143,6.24631182,179.33,179.3,6.7114342]
[1752804921342,5.57631182,179.33,179.3,6.7114342]
[1752804921715,0.67,179.32,179.3,0.12]
[1752804921926,7.2614342,179.31,179.3,0.12]
[1752804922522,7.2614342,179.31,179.29,3.0]
[1752804922728,33.2614342,179.3,179.29,3.0]
[1752804922923,33.2614342,179.3,179.27,0.2]
[1752804923246,0.67,179.29,179.27,0.2]
[1752804923832,5.57786702,179.28,179.27,0.2]
[1752804924045,6.24786702,179.28,179.27,0.2]
[1752804924346,12.83930122,179.28,179.27,0.2]
[1752804924532,12.83930122,179.28,179.27,1e-08]
[1752804924732,43.55930122,179.28,179.27,1e-08]
[1752804925535,43.55930122,179.28,179.25,1e-08]
[1752804925536,26.0,179.26,179.25,1e-08]
[1752804925837,38.16992354,179.26,179.25,1e-08]
[1752804926028,38.86992354,179.26,179.25,1e-08]
[1752804926647,32.27848934,179.26,179.25,1e-08]
[1752804927240,31.57848934,179.26,179.25,1e-08]
[1752804927442,38.86992354,179.26,179.25,1e-08]
[1752804929719,32.27848934,179.26,179.25,1e-08]
[1752804929921,38.86992354,179.26,179.25,1e-08]
[1752804930949,32.27848934,179.26,179.25,1e-08]
[1752804931152,38.86992354,179.26,179.25,1e-08]
[1752804931546,69.56992354,179.26,179.25,1e-08]
[1752804931851,62.97848934,179.26,179.25,1e-08]
[1752804932032,69.56992354,179.26,179.25,1e-08]
[1752804936535,86.35460751,179.26,179.25,1e-08]
[1752804937340,26.0,179.22,179.17,0.06]
[1752804937542,6.5914342,179.19,179.17,0.06]
[1752804937756,37.2514342,179.19,179.17,0.06]
[1752804938062,5.58098002,179.18,179.17,0.06]
[1752804939161,6.28098002,179.18,179.17,0.06]
[1752804941049,26.82486427,179.18,179.11,0.71]
[1752804941356,26.82486427,179.18,179.12,6.5914342]
[1752804941559,6.5914342,179.17,179.12,6.5914342]
[1752804941765,7.2914342,179.17,179.12,7.3014342]
[1752804941961,6.5914342,179.16,179.12,0.71]
[1752804942164,5.58191459,179.15,179.12,0.71]
[1752804942666,26.82813528,179.15,179.1,6.5914342]
[1752804942864,26.82813528,179.15,179.11,0.71]
[1752804943048,0.7,179.14,179.09,88.77]
[1752804943250,0.7,179.13,179.09,96.0714342]
[1752804943851,57.46813528,179.15,179.09,96.0714342]
[1752804944039,57.46813528,179.15,179.09,89.48]
[1752804944244,6.5914342,179.14,179.09,89.48]
[1752804944444,6.5914342,179.14,179.09,96.0714342]
[1752804944674,7.2914342,179.14,179.09,7.3014342]
[1752804944955,7.2914342,179.14,179.09,0.71]
[1752804945161,50.17670108,179.15,179.1,7.3014342]
[1752804945361,50.87670108,179.15,179.11,0.71]
[1752804946866,50.17670108,179.15,179.09,0.06]
[1752804947179,0.7,179.14,179.09,0.06]
[1752804947350,0.7,179.14,179.09,7.3614342]
[1752804947667,0.7,179.13,179.09,6.6514342]
[1752804947865,0.7,179.12,179.09,0.06]
[1752804948445,5.58316118,179.11,179.09,0.06]
[1752804949762,5.58316118,179.11,179.09,7.3614342]
[1752804950071,30.62,179.13,179.09,6.6514342]
[1752804950255,45.27478649,179.15,179.1,7.3014342]
[1752804950573,45.27478649,179.15,179.11,7.3014342]
[1752804950574,13.95478649,179.15,179.11,7.3014342]
[1752804950772,5.58191459,179.15,179.11,6.5914342]
[1752804950978,26.0,179.16,179.14,6.5914342]
[1752804950979,31.58161816,179.16,179.14,6.5914342]
[1752804951264,5.58161816,179.16,179.15,0.71]
[1752804951645,5.58066856,179.19,179.15,7.3014342]
[1752804951844,5.58066856,179.19,179.16,7.3014342]
[1752804952047,5.58066856,179.19,179.18,6.5914342]
[1752804952258,5.58066856,179.19,179.18,7.3014342]
[1752804952457,5.58017958,179.21,179.18,0.71]
[1752804952677,5.58017958,179.21,179.19,6.5914342]
[1752804952897,5.58017958,179.21,179.19,7.3014342]
[1752804953070,5.58017958,179.21,179.2,7.3014342]
[1752804953375,5.58017958,179.21,179.16,5.58156401]
[1752804953376,19.53029397,179.21,179.17,0.71]
[1752804953579,7.2914342,179.2,179.15,0.71]
[1752804953777,6.5914342,179.17,179.12,0.71]
[1752804954279,7.2914342,179.17,179.12,7.3014342]
[1752804954488,5.58160303,179.16,179.13,7.3014342]
[1752804954661,5.58160303,179.16,179.14,0.65]
[1752804954864,5.58129046,179.18,179.15,0.65]
[1752804955181,30.6,179.21,179.17,6.5914342]
[1752804955385,30.6,179.21,179.17,7.2414342]
[1752804955585,30.6,179.21,179.17,0.65]
[1752804955783,5.58004575,179.21,179.17,0.65]
[1752804956088,5.58004575,179.21,179.18,0.65]
[1752804956469,26.12090228,179.22,179.18,0.65]
[1752804956674,7.2614342,179.21,179.16,0.65]
[1752804956875,7.2614342,179.21,179.16,7.2414342]
[1752804957474,6.5914342,179.21,179.16,0.65]
[1752804957681,0.67,179.2,179.16,0.65]
[1752804957990,0.67,179.19,179.15,6.5914342]
[1752804958793,0.67,179.19,179.15,7.2414342]
[1752804958794,5.58098002,179.18,179.15,7.2414342]
[1752804958968,5.58035714,179.2,179.16,7.2414342]
[1752804959169,5.58035714,179.2,179.17,0.65]
[1752804959766,5.58035714,179.2,179.17,7.2414342]
[1752804960291,5.58004575,179.21,179.18,0.65]
[1752804960479,5.58004575,179.21,179.12,141.73745732]
[1752804960680,6.25004575,179.21,179.16,7.2414342]
[1752804960894,6.25004575,179.21,179.16,96.0114342]
[1752804961192,6.25004575,179.21,179.18,6.5914342]
[1752804961193,5.58004575,179.21,179.18,6.5914342]
[1752804961491,20.20016014,179.21,179.16,88.77]
[1752804961672,6.5914342,179.17,179.11,0.65]
[1752804961988,7.2614342,179.17,179.11,0.65]
[1752804962201,6.5914342,179.12,179.09,0.06]
[1752804962491,32.5914342,179.1,179.09,1e-08]
[1752804962869,33.2614342,179.1,179.09,1e-08]
[1752804963070,7.2614342,179.1,179.09,1e-08]
[1752804964493,12.84490712,179.1,179.09,1e-08]
[1752804964698,6.25347292,179.1,179.09,1e-08]
[1752804964904,5.58347292,179.1,179.09,1e-08]
[1752804965091,30.54,179.15,179.09,0.65000001]
[1752804965281,26.0,179.12,179.09,7.24143421]
[1752804965689,26.0,179.12,179.1,0.65]
[1752804965892,26.0,179.12,179.09,6.59143421]
[1752804966090,0.67,179.11,179.09,1e-08]
[1752804966292,5.58347292,179.1,179.09,1e-08]
[1752804966469,6.25347292,179.1,179.09,1e-08]
[1752804967514,5.58347292,179.1,179.09,1e-08]
[1752804968278,6.25347292,179.1,179.09,1e-08]
[1752804968790,5.58347292,179.1,179.09,11.26346731]
[1752804968984,5.58347292,179.1,179.09,0.65000001]
[1752804969400,5.58347292,179.1,179.09,1e-08]
[1752804970100,5.58316118,179.11,179.09,1e-08]
[1752804971194,0.67,179.1,179.09,1e-08]
[1752804971391,11.2834673,179.1,179.09,1e-08]
[1752804971796,5.58316118,179.11,179.09,1e-08]
[1752804972097,6.25347292,179.1,179.09,1e-08]
[1752804972892,16.86694022,179.1,179.09,1e-08]
[1752804974082,5.58347292,179.1,179.09,1e-08]
[1752804974400,26.0,179.12,179.09,1e-08]
[1752804974401,5.58316118,179.11,179.09,1e-08]
[1752804975087,5.58316118,179.11,179.09,0.65000001]
[1752804976178,24.56903277,179.14,179.09,0.65000001]
[1752804976179,5.58284948,179.12,179.09,11.26346731]
[1752804976391,5.58284948,179.12,179.09,0.65000001]
[1752804976592,6.25284948,179.12,179.09,1e-08]
[1752804977191,5.58284948,179.12,179.09,1e-08]
[1752804977388,5.58284948,179.12,179.1,0.65]
[1752804977792,5.58284948,179.12,179.1,10.6134673]
[1752804977991,5.58222619,179.14,179.11,0.65]
[1752804978215,19.53475706,179.17,179.12,11.2634673]
[1752804978554,20.20475706,179.17,179.09,12.86730001]
[1752804978680,5.58129151,179.17,179.14,10.6134673]
[1752804978880,5.58129151,179.17,179.13,10.6134673]
[1752804979414,6.25129151,179.17,179.13,10.6134673]
[1752804979581,5.58129151,179.17,179.13,11.2634673]
[1752804980007,5.58129151,179.17,179.09,18.45107557]
[1752804980206,5.58191459,179.15,179.13,10.6134673]
[1752804980411,5.58191459,179.15,179.13,11.2634673]
[1752804981207,5.58191459,179.15,179.13,0.65]
[1752804981388,5.58191459,179.15,179.12,10.6134673]
[1752804981711,5.58191459,179.15,179.13,10.6134673]
[1752804982308,5.58129151,179.17,179.12,0.65]
[1752804982619,11.2834673,179.16,179.11,10.6134673]
[1752804982805,10.6134673,179.16,179.11,10.6134673]
[1752804983007,0.67,179.15,179.11,10.6134673]
[1752804983308,0.67,179.14,179.1,10.6134673]
[1752804983509,0.67,179.14,179.1,99.4134673]
[1752804983917,20.20452028,179.17,179.12,10.6134673]
[1752804984115,20.20452028,179.17,179.13,10.6134673]
[1752804984303,30.81798758,179.17,179.12,11.2634673]
[1752804985424,0.66,179.16,179.12,11.2634673]
[1752804987224,5.58160303,179.16,179.13,11.3234673]